{"text_format":"3","workbook":"xlsx","n_sheets":1,"sheets":["Bảng chấm công hàng năm"],"not_rendered":{"defined_names":2},"read":"whole","date_system":"1900"}

{"sheet":"Bảng chấm công hàng năm","index":0,"n_rows":140,"n_cols":12,"rows_kept":140,"merged":[[0,1,1,11],[2,5,2,7],[2,8,2,9],[3,5,3,6],[5,1,5,11],[15,3,15,4],[26,3,26,4],[37,3,37,4],[39,1,39,11],[49,3,49,4],[60,3,60,4],[71,3,71,4],[73,1,73,11],[83,3,83,4],[94,3,94,4],[105,3,105,4],[107,1,107,11],[117,3,117,4],[128,3,128,4],[139,3,139,4]]}
[null,"Phiếu chấm công nhân viên"]
[]
[null,"Tên nhân viên:",null,"Email:",null,"Tổng từ đầu năm đến nay:"]
[null,"Người quản lý:",null,"Điện thoại:",null,"Số giờ làm việc thông thường:",null,{"$f":"SUM(C16,C27,C38,C50,C61,C72,C84,C95,C106,C118,C129,C140)","v":0},"Số giờ làm thêm:",{"$f":"SUM(F16,F27,F38,F50,F61,F72,F84,F95,F106,F118,F129,F140)","v":0},"Tổng cộng:",{"$f":"SUM(H4,J4)","v":0}]
[]
[null,"Tháng Một, Tháng Hai, Tháng Ba      Phiếu chấm công nhân viên: Hàng ngày, hàng tuần, hàng tháng, hàng năm"]
[null,"Tháng Một","Tuần 1","Giờ làm thêm","Tuần 2","Giờ làm thêm ","Tuần 3","Giờ làm thêm  ","Tuần 4","Giờ làm thêm   ","Tuần 5","Giờ làm thêm    "]
[null,"Thứ Hai"]
[null,"Thứ Ba"]
[null,"Thứ Tư"]
[null,"Thứ Năm"]
[null,"Thứ Sáu"]
[null,"Thứ Bảy"]
[null,"Chủ Nhật"]
[null,"Tổng số giờ hàng tuần",{"$f":"SUBTOTAL(109,Tháng_Một[Tuần 1])","v":0},{"$f":"SUBTOTAL(109,Tháng_Một[Giờ làm thêm])","v":0},{"$f":"SUBTOTAL(109,Tháng_Một[Tuần 2])","v":0},{"$f":"SUBTOTAL(109,Tháng_Một[[Giờ làm thêm ]])","v":0},{"$f":"SUBTOTAL(109,Tháng_Một[Tuần 3])","v":0},{"$f":"SUBTOTAL(109,Tháng_Một[[Giờ làm thêm  ]])","v":0},{"$f":"SUBTOTAL(109,Tháng_Một[Tuần 4])","v":0},{"$f":"SUBTOTAL(109,Tháng_Một[[Giờ làm thêm   ]])","v":0},{"$f":"SUBTOTAL(109,Tháng_Một[Tuần 5])","v":0},{"$f":"SUBTOTAL(109,Tháng_Một[[Giờ làm thêm    ]])","v":0}]
[null,"Tổng Thg1: Số giờ làm việc thông thường",{"$f":"SUM(Tháng_Một[[#Totals],[Tuần 1]],Tháng_Một[[#Totals],[Tuần 2]],Tháng_Một[[#Totals],[Tuần 3]],Tháng_Một[[#Totals],[Tuần 4]],Tháng_Một[[#Totals],[Tuần 5]])","v":0},"Tổng Thg1: Giờ làm thêm",null,{"$f":"SUM(Tháng_Một[[#Totals],[Giờ làm thêm]],Tháng_Một[[#Totals],[Giờ làm thêm ]],Tháng_Một[[#Totals],[Giờ làm thêm  ]],Tháng_Một[[#Totals],[Giờ làm thêm   ]],Tháng_Một[[#Totals],[Giờ làm thêm    ]])","v":0}]
[]
[null,"Tháng Hai","Tuần 1","Giờ làm thêm","Tuần 2","Giờ làm thêm ","Tuần 3","Giờ làm thêm  ","Tuần 4","Giờ làm thêm   ","Tuần 5","Giờ làm thêm    "]
[null,"Thứ Hai"]
[null,"Thứ Ba"]
[null,"Thứ Tư"]
[null,"Thứ Năm"]
[null,"Thứ Sáu"]
[null,"Thứ Bảy"]
[null,"Chủ Nhật"]
[null,"Tổng số giờ hàng tuần",{"$f":"SUBTOTAL(109,Tháng_Hai[Tuần 1])","v":0},{"$f":"SUBTOTAL(109,Tháng_Hai[Giờ làm thêm])","v":0},{"$f":"SUBTOTAL(109,Tháng_Hai[Tuần 2])","v":0},{"$f":"SUBTOTAL(109,Tháng_Hai[[Giờ làm thêm ]])","v":0},{"$f":"SUBTOTAL(109,Tháng_Hai[Tuần 3])","v":0},{"$f":"SUBTOTAL(109,Tháng_Hai[[Giờ làm thêm  ]])","v":0},{"$f":"SUBTOTAL(109,Tháng_Hai[Tuần 4])","v":0},{"$f":"SUBTOTAL(109,Tháng_Hai[[Giờ làm thêm   ]])","v":0},{"$f":"SUBTOTAL(109,Tháng_Hai[Tuần 5])","v":0},{"$f":"SUBTOTAL(109,Tháng_Hai[[Giờ làm thêm    ]])","v":0}]
[null,"Tổng Thg2: Số giờ làm việc thông thường",{"$f":"SUM(Tháng_Hai[[#Totals],[Tuần 1]],Tháng_Hai[[#Totals],[Tuần 2]],Tháng_Hai[[#Totals],[Tuần 3]],Tháng_Hai[[#Totals],[Tuần 4]],Tháng_Hai[[#Totals],[Tuần 5]])","v":0},"Tổng Thg2: Giờ làm thêm",null,{"$f":"SUM(Tháng_Hai[[#Totals],[Giờ làm thêm]],Tháng_Hai[[#Totals],[Giờ làm thêm ]],Tháng_Hai[[#Totals],[Giờ làm thêm  ]],Tháng_Hai[[#Totals],[Giờ làm thêm   ]],Tháng_Hai[[#Totals],[Giờ làm thêm    ]])","v":0}]
[]
[null,"Tháng Ba","Tuần 1","Giờ làm thêm","Tuần 2","Giờ làm thêm ","Tuần 3","Giờ làm thêm  ","Tuần 4","Giờ làm thêm   ","Tuần 5","Giờ làm thêm    "]
[null,"Thứ Hai"]
[null,"Thứ Ba"]
[null,"Thứ Tư"]
[null,"Thứ Năm"]
[null,"Thứ Sáu"]
[null,"Thứ Bảy"]
[null,"Chủ Nhật"]
[null,"Tổng số giờ hàng tuần",{"$f":"SUBTOTAL(109,Tháng_Ba[Tuần 1])","v":0},{"$f":"SUBTOTAL(109,Tháng_Ba[Giờ làm thêm])","v":0},{"$f":"SUBTOTAL(109,Tháng_Ba[Tuần 2])","v":0},{"$f":"SUBTOTAL(109,Tháng_Ba[[Giờ làm thêm ]])","v":0},{"$f":"SUBTOTAL(109,Tháng_Ba[Tuần 3])","v":0},{"$f":"SUBTOTAL(109,Tháng_Ba[[Giờ làm thêm  ]])","v":0},{"$f":"SUBTOTAL(109,Tháng_Ba[Tuần 4])","v":0},{"$f":"SUBTOTAL(109,Tháng_Ba[[Giờ làm thêm   ]])","v":0},{"$f":"SUBTOTAL(109,Tháng_Ba[Tuần 5])","v":0},{"$f":"SUBTOTAL(109,Tháng_Ba[[Giờ làm thêm    ]])","v":0}]
[null,"Tổng Thg3: Số giờ làm việc thông thường",{"$f":"SUM(Tháng_Ba[[#Totals],[Tuần 1]],Tháng_Ba[[#Totals],[Tuần 2]],Tháng_Ba[[#Totals],[Tuần 3]],Tháng_Ba[[#Totals],[Tuần 4]],Tháng_Ba[[#Totals],[Tuần 5]])","v":0},"Tổng Thg3: Giờ làm thêm",null,{"$f":"SUM(Tháng_Ba[[#Totals],[Giờ làm thêm]],Tháng_Ba[[#Totals],[Giờ làm thêm ]],Tháng_Ba[[#Totals],[Giờ làm thêm  ]],Tháng_Ba[[#Totals],[Giờ làm thêm   ]],Tháng_Ba[[#Totals],[Giờ làm thêm    ]])","v":0}]
[]
[null,"Tháng Tư, Tháng Năm, Tháng Sáu      Phiếu chấm công nhân viên: Hàng ngày, hàng tuần, hàng tháng, hàng năm"]
[null,"Tháng Tư","Tuần 1","Giờ làm thêm","Tuần 2","Giờ làm thêm ","Tuần 3","Giờ làm thêm  ","Tuần 4","Giờ làm thêm   ","Tuần 5","Giờ làm thêm    "]
[null,"Thứ Hai"]
[null,"Thứ Ba"]
[null,"Thứ Tư"]
[null,"Thứ Năm"]
[null,"Thứ Sáu"]
[null,"Thứ Bảy"]
[null,"Chủ Nhật"]
[null,"Tổng số giờ hàng tuần",{"$f":"SUBTOTAL(109,Tháng_Tư[Tuần 1])","v":0},{"$f":"SUBTOTAL(109,Tháng_Tư[Giờ làm thêm])","v":0},{"$f":"SUBTOTAL(109,Tháng_Tư[Tuần 2])","v":0},{"$f":"SUBTOTAL(109,Tháng_Tư[[Giờ làm thêm ]])","v":0},{"$f":"SUBTOTAL(109,Tháng_Tư[Tuần 3])","v":0},{"$f":"SUBTOTAL(109,Tháng_Tư[[Giờ làm thêm  ]])","v":0},{"$f":"SUBTOTAL(109,Tháng_Tư[Tuần 4])","v":0},{"$f":"SUBTOTAL(109,Tháng_Tư[[Giờ làm thêm   ]])","v":0},{"$f":"SUBTOTAL(109,Tháng_Tư[Tuần 5])","v":0},{"$f":"SUBTOTAL(109,Tháng_Tư[[Giờ làm thêm    ]])","v":0}]
[null,"Tổng Thg4: Số giờ làm việc thông thường",{"$f":"SUM(Tháng_Tư[[#Totals],[Tuần 1]],Tháng_Tư[[#Totals],[Tuần 2]],Tháng_Tư[[#Totals],[Tuần 3]],Tháng_Tư[[#Totals],[Tuần 4]],Tháng_Tư[[#Totals],[Tuần 5]])","v":0},"Tổng Thg4: Giờ làm thêm",null,{"$f":"SUM(Tháng_Tư[[#Totals],[Giờ làm thêm]],Tháng_Tư[[#Totals],[Giờ làm thêm ]],Tháng_Tư[[#Totals],[Giờ làm thêm  ]],Tháng_Tư[[#Totals],[Giờ làm thêm   ]],Tháng_Tư[[#Totals],[Giờ làm thêm    ]])","v":0}]
[]
[null,"Tháng Năm","Tuần 1","Giờ làm thêm","Tuần 2","Giờ làm thêm ","Tuần 3","Giờ làm thêm  ","Tuần 4","Giờ làm thêm   ","Tuần 5","Giờ làm thêm    "]
[null,"Thứ Hai"]
[null,"Thứ Ba"]
[null,"Thứ Tư"]
[null,"Thứ Năm"]
[null,"Thứ Sáu"]
[null,"Thứ Bảy"]
[null,"Chủ Nhật"]
[null,"Tổng số giờ hàng tuần",{"$f":"SUBTOTAL(109,Tháng_Năm[Tuần 1])","v":0},{"$f":"SUBTOTAL(109,Tháng_Năm[Giờ làm thêm])","v":0},{"$f":"SUBTOTAL(109,Tháng_Năm[Tuần 2])","v":0},{"$f":"SUBTOTAL(109,Tháng_Năm[[Giờ làm thêm ]])","v":0},{"$f":"SUBTOTAL(109,Tháng_Năm[Tuần 3])","v":0},{"$f":"SUBTOTAL(109,Tháng_Năm[[Giờ làm thêm  ]])","v":0},{"$f":"SUBTOTAL(109,Tháng_Năm[Tuần 4])","v":0},{"$f":"SUBTOTAL(109,Tháng_Năm[[Giờ làm thêm   ]])","v":0},{"$f":"SUBTOTAL(109,Tháng_Năm[Tuần 5])","v":0},{"$f":"SUBTOTAL(109,Tháng_Năm[[Giờ làm thêm    ]])","v":0}]
[null,"Tổng Thg5: Số giờ làm việc thông thường",{"$f":"SUM(Tháng_Năm[[#Totals],[Tuần 1]],Tháng_Năm[[#Totals],[Tuần 2]],Tháng_Năm[[#Totals],[Tuần 3]],Tháng_Năm[[#Totals],[Tuần 4]],Tháng_Năm[[#Totals],[Tuần 5]])","v":0},"Tổng Thg5: Giờ làm thêm",null,{"$f":"SUM(Tháng_Năm[[#Totals],[Giờ làm thêm]],Tháng_Năm[[#Totals],[Giờ làm thêm ]],Tháng_Năm[[#Totals],[Giờ làm thêm  ]],Tháng_Năm[[#Totals],[Giờ làm thêm   ]],Tháng_Năm[[#Totals],[Giờ làm thêm    ]])","v":0}]
[]
[null,"Tháng Sáu","Tuần 1","Giờ làm thêm","Tuần 2","Giờ làm thêm ","Tuần 3","Giờ làm thêm  ","Tuần 4","Giờ làm thêm   ","Tuần 5","Giờ làm thêm    "]
[null,"Thứ Hai"]
[null,"Thứ Ba"]
[null,"Thứ Tư"]
[null,"Thứ Năm"]
[null,"Thứ Sáu"]
[null,"Thứ Bảy"]
[null,"Chủ Nhật"]
[null,"Tổng số giờ hàng tuần",{"$f":"SUBTOTAL(109,Tháng_Sáu[Tuần 1])","v":0},{"$f":"SUBTOTAL(109,Tháng_Sáu[Giờ làm thêm])","v":0},{"$f":"SUBTOTAL(109,Tháng_Sáu[Tuần 2])","v":0},{"$f":"SUBTOTAL(109,Tháng_Sáu[[Giờ làm thêm ]])","v":0},{"$f":"SUBTOTAL(109,Tháng_Sáu[Tuần 3])","v":0},{"$f":"SUBTOTAL(109,Tháng_Sáu[[Giờ làm thêm  ]])","v":0},{"$f":"SUBTOTAL(109,Tháng_Sáu[Tuần 4])","v":0},{"$f":"SUBTOTAL(109,Tháng_Sáu[[Giờ làm thêm   ]])","v":0},{"$f":"SUBTOTAL(109,Tháng_Sáu[Tuần 5])","v":0},{"$f":"SUBTOTAL(109,Tháng_Sáu[[Giờ làm thêm    ]])","v":0}]
[null,"Tổng Thg6: Số giờ làm việc thông thường",{"$f":"SUM(Tháng_Sáu[[#Totals],[Tuần 1]],Tháng_Sáu[[#Totals],[Tuần 2]],Tháng_Sáu[[#Totals],[Tuần 3]],Tháng_Sáu[[#Totals],[Tuần 4]],Tháng_Sáu[[#Totals],[Tuần 5]])","v":0},"Tổng Thg6: Giờ làm thêm",null,{"$f":"SUM(Tháng_Sáu[[#Totals],[Giờ làm thêm]],Tháng_Sáu[[#Totals],[Giờ làm thêm ]],Tháng_Sáu[[#Totals],[Giờ làm thêm  ]],Tháng_Sáu[[#Totals],[Giờ làm thêm   ]],Tháng_Sáu[[#Totals],[Giờ làm thêm    ]])","v":0}]
[]
[null,"Tháng Bảy, Tháng Tám, Tháng Chín      Phiếu chấm công nhân viên: Hàng ngày, hàng tuần, hàng tháng, hàng năm"]
[null,"Tháng Bảy","Tuần 1","Giờ làm thêm","Tuần 2","Giờ làm thêm ","Tuần 3","Giờ làm thêm  ","Tuần 4","Giờ làm thêm   ","Tuần 5","Giờ làm thêm    "]
[null,"Thứ Hai"]
[null,"Thứ Ba"]
[null,"Thứ Tư"]
[null,"Thứ Năm"]
[null,"Thứ Sáu"]
[null,"Thứ Bảy"]
[null,"Chủ Nhật"]
[null,"Tổng số giờ hàng tuần",{"$f":"SUBTOTAL(109,Tháng_Bảy[Tuần 1])","v":0},{"$f":"SUBTOTAL(109,Tháng_Bảy[Giờ làm thêm])","v":0},{"$f":"SUBTOTAL(109,Tháng_Bảy[Tuần 2])","v":0},{"$f":"SUBTOTAL(109,Tháng_Bảy[[Giờ làm thêm ]])","v":0},{"$f":"SUBTOTAL(109,Tháng_Bảy[Tuần 3])","v":0},{"$f":"SUBTOTAL(109,Tháng_Bảy[[Giờ làm thêm  ]])","v":0},{"$f":"SUBTOTAL(109,Tháng_Bảy[Tuần 4])","v":0},{"$f":"SUBTOTAL(109,Tháng_Bảy[[Giờ làm thêm   ]])","v":0},{"$f":"SUBTOTAL(109,Tháng_Bảy[Tuần 5])","v":0},{"$f":"SUBTOTAL(109,Tháng_Bảy[[Giờ làm thêm    ]])","v":0}]
[null,"Tổng Thg7: Số giờ làm việc thông thường",{"$f":"SUM(Tháng_Bảy[[#Totals],[Tuần 1]],Tháng_Bảy[[#Totals],[Tuần 2]],Tháng_Bảy[[#Totals],[Tuần 3]],Tháng_Bảy[[#Totals],[Tuần 4]],Tháng_Bảy[[#Totals],[Tuần 5]])","v":0},"Tổng Thg7: Giờ làm thêm",null,{"$f":"SUM(Tháng_Bảy[[#Totals],[Giờ làm thêm]],Tháng_Bảy[[#Totals],[Giờ làm thêm ]],Tháng_Bảy[[#Totals],[Giờ làm thêm  ]],Tháng_Bảy[[#Totals],[Giờ làm thêm   ]],Tháng_Bảy[[#Totals],[Giờ làm thêm    ]])","v":0}]
[]
[null,"Tháng Tám","Tuần 1","Giờ làm thêm","Tuần 2","Giờ làm thêm ","Tuần 3","Giờ làm thêm  ","Tuần 4","Giờ làm thêm   ","Tuần 5","Giờ làm thêm    "]
[null,"Thứ Hai"]
[null,"Thứ Ba"]
[null,"Thứ Tư"]
[null,"Thứ Năm"]
[null,"Thứ Sáu"]
[null,"Thứ Bảy"]
[null,"Chủ Nhật"]
[null,"Tổng số giờ hàng tuần",{"$f":"SUBTOTAL(109,Tháng_Tám[Tuần 1])","v":0},{"$f":"SUBTOTAL(109,Tháng_Tám[Giờ làm thêm])","v":0},{"$f":"SUBTOTAL(109,Tháng_Tám[Tuần 2])","v":0},{"$f":"SUBTOTAL(109,Tháng_Tám[[Giờ làm thêm ]])","v":0},{"$f":"SUBTOTAL(109,Tháng_Tám[Tuần 3])","v":0},{"$f":"SUBTOTAL(109,Tháng_Tám[[Giờ làm thêm  ]])","v":0},{"$f":"SUBTOTAL(109,Tháng_Tám[Tuần 4])","v":0},{"$f":"SUBTOTAL(109,Tháng_Tám[[Giờ làm thêm   ]])","v":0},{"$f":"SUBTOTAL(109,Tháng_Tám[Tuần 5])","v":0},{"$f":"SUBTOTAL(109,Tháng_Tám[[Giờ làm thêm    ]])","v":0}]
[null,"Tổng Thg8: Số giờ làm việc thông thường",{"$f":"SUM(Tháng_Tám[[#Totals],[Tuần 1]],Tháng_Tám[[#Totals],[Tuần 2]],Tháng_Tám[[#Totals],[Tuần 3]],Tháng_Tám[[#Totals],[Tuần 4]],Tháng_Tám[[#Totals],[Tuần 5]])","v":0},"Tổng Thg8: Giờ làm thêm",null,{"$f":"SUM(Tháng_Tám[[#Totals],[Giờ làm thêm]],Tháng_Tám[[#Totals],[Giờ làm thêm ]],Tháng_Tám[[#Totals],[Giờ làm thêm  ]],Tháng_Tám[[#Totals],[Giờ làm thêm   ]],Tháng_Tám[[#Totals],[Giờ làm thêm    ]])","v":0}]
[]
[null,"Tháng Chín","Tuần 1","Giờ làm thêm","Tuần 2","Giờ làm thêm ","Tuần 3","Giờ làm thêm  ","Tuần 4","Giờ làm thêm   ","Tuần 5","Giờ làm thêm    "]
[null,"Thứ Hai"]
[null,"Thứ Ba"]
[null,"Thứ Tư"]
[null,"Thứ Năm"]
[null,"Thứ Sáu"]
[null,"Thứ Bảy"]
[null,"Chủ Nhật"]
[null,"Tổng số giờ hàng tuần",{"$f":"SUBTOTAL(109,Tháng_Chín[Tuần 1])","v":0},{"$f":"SUBTOTAL(109,Tháng_Chín[Giờ làm thêm])","v":0},{"$f":"SUBTOTAL(109,Tháng_Chín[Tuần 2])","v":0},{"$f":"SUBTOTAL(109,Tháng_Chín[[Giờ làm thêm ]])","v":0},{"$f":"SUBTOTAL(109,Tháng_Chín[Tuần 3])","v":0},{"$f":"SUBTOTAL(109,Tháng_Chín[[Giờ làm thêm  ]])","v":0},{"$f":"SUBTOTAL(109,Tháng_Chín[Tuần 4])","v":0},{"$f":"SUBTOTAL(109,Tháng_Chín[[Giờ làm thêm   ]])","v":0},{"$f":"SUBTOTAL(109,Tháng_Chín[Tuần 5])","v":0},{"$f":"SUBTOTAL(109,Tháng_Chín[[Giờ làm thêm    ]])","v":0}]
[null,"Tổng Thg9: Số giờ làm việc thông thường",{"$f":"SUM(Tháng_Chín[[#Totals],[Tuần 1]],Tháng_Chín[[#Totals],[Tuần 2]],Tháng_Chín[[#Totals],[Tuần 3]],Tháng_Chín[[#Totals],[Tuần 4]],Tháng_Chín[[#Totals],[Tuần 5]])","v":0},"Tổng Thg9: Giờ làm thêm",null,{"$f":"SUM(Tháng_Chín[[#Totals],[Giờ làm thêm]],Tháng_Chín[[#Totals],[Giờ làm thêm ]],Tháng_Chín[[#Totals],[Giờ làm thêm  ]],Tháng_Chín[[#Totals],[Giờ làm thêm   ]],Tháng_Chín[[#Totals],[Giờ làm thêm    ]])","v":0}]
[]
[null,"Tháng Mười, Tháng Mười Một, Tháng Mười Hai      Phiếu chấm công nhân viên: Hàng ngày, hàng tuần, hàng tháng, hàng năm"]
[null,"Tháng Mười","Tuần 1","Giờ làm thêm","Tuần 2","Giờ làm thêm ","Tuần 3","Giờ làm thêm  ","Tuần 4","Giờ làm thêm   ","Tuần 5","Giờ làm thêm    "]
[null,"Thứ Hai"]
[null,"Thứ Ba"]
[null,"Thứ Tư"]
[null,"Thứ Năm"]
[null,"Thứ Sáu"]
[null,"Thứ Bảy"]
[null,"Chủ Nhật"]
[null,"Tổng số giờ hàng tuần",{"$f":"SUBTOTAL(109,Tháng_Mười[Tuần 1])","v":0},{"$f":"SUBTOTAL(109,Tháng_Mười[Giờ làm thêm])","v":0},{"$f":"SUBTOTAL(109,Tháng_Mười[Tuần 2])","v":0},{"$f":"SUBTOTAL(109,Tháng_Mười[[Giờ làm thêm ]])","v":0},{"$f":"SUBTOTAL(109,Tháng_Mười[Tuần 3])","v":0},{"$f":"SUBTOTAL(109,Tháng_Mười[[Giờ làm thêm  ]])","v":0},{"$f":"SUBTOTAL(109,Tháng_Mười[Tuần 4])","v":0},{"$f":"SUBTOTAL(109,Tháng_Mười[[Giờ làm thêm   ]])","v":0},{"$f":"SUBTOTAL(109,Tháng_Mười[Tuần 5])","v":0},{"$f":"SUBTOTAL(109,Tháng_Mười[[Giờ làm thêm    ]])","v":0}]
[null,"Tổng Thg10: Số giờ làm việc thông thường",{"$f":"SUM(Tháng_Mười[[#Totals],[Tuần 1]],Tháng_Mười[[#Totals],[Tuần 2]],Tháng_Mười[[#Totals],[Tuần 3]],Tháng_Mười[[#Totals],[Tuần 4]],Tháng_Mười[[#Totals],[Tuần 5]])","v":0},"Tổng Thg10: Giờ làm thêm",null,{"$f":"SUM(Tháng_Mười[[#Totals],[Giờ làm thêm]],Tháng_Mười[[#Totals],[Giờ làm thêm ]],Tháng_Mười[[#Totals],[Giờ làm thêm  ]],Tháng_Mười[[#Totals],[Giờ làm thêm   ]],Tháng_Mười[[#Totals],[Giờ làm thêm    ]])","v":0}]
[]
[null,"Tháng Mười Một","Tuần 1","Giờ làm thêm","Tuần 2","Giờ làm thêm ","Tuần 3","Giờ làm thêm  ","Tuần 4","Giờ làm thêm   ","Tuần 5","Giờ làm thêm    "]
[null,"Thứ Hai"]
[null,"Thứ Ba"]
[null,"Thứ Tư"]
[null,"Thứ Năm"]
[null,"Thứ Sáu"]
[null,"Thứ Bảy"]
[null,"Chủ Nhật"]
[null,"Tổng số giờ hàng tuần",{"$f":"SUBTOTAL(109,Tháng_Mười_Một[Tuần 1])","v":0},{"$f":"SUBTOTAL(109,Tháng_Mười_Một[Giờ làm thêm])","v":0},{"$f":"SUBTOTAL(109,Tháng_Mười_Một[Tuần 2])","v":0},{"$f":"SUBTOTAL(109,Tháng_Mười_Một[[Giờ làm thêm ]])","v":0},{"$f":"SUBTOTAL(109,Tháng_Mười_Một[Tuần 3])","v":0},{"$f":"SUBTOTAL(109,Tháng_Mười_Một[[Giờ làm thêm  ]])","v":0},{"$f":"SUBTOTAL(109,Tháng_Mười_Một[Tuần 4])","v":0},{"$f":"SUBTOTAL(109,Tháng_Mười_Một[[Giờ làm thêm   ]])","v":0},{"$f":"SUBTOTAL(109,Tháng_Mười_Một[Tuần 5])","v":0},{"$f":"SUBTOTAL(109,Tháng_Mười_Một[[Giờ làm thêm    ]])","v":0}]
[null,"Tổng Thg11: Số giờ làm việc thông thường",{"$f":"SUM(Tháng_Mười_Một[[#Totals],[Tuần 1]],Tháng_Mười_Một[[#Totals],[Tuần 2]],Tháng_Mười_Một[[#Totals],[Tuần 3]],Tháng_Mười_Một[[#Totals],[Tuần 4]],Tháng_Mười_Một[[#Totals],[Tuần 5]])","v":0},"Tổng Thg11: Giờ làm thêm",null,{"$f":"SUM(Tháng_Mười_Một[[#Totals],[Giờ làm thêm]],Tháng_Mười_Một[[#Totals],[Giờ làm thêm ]],Tháng_Mười_Một[[#Totals],[Giờ làm thêm  ]],Tháng_Mười_Một[[#Totals],[Giờ làm thêm   ]],Tháng_Mười_Một[[#Totals],[Giờ làm thêm    ]])","v":0}]
[]
[null,"Tháng Mười Hai","Tuần 1","Giờ làm thêm","Tuần 2","Giờ làm thêm ","Tuần 3","Giờ làm thêm  ","Tuần 4","Giờ làm thêm   ","Tuần 5","Giờ làm thêm    "]
[null,"Thứ Hai"]
[null,"Thứ Ba"]
[null,"Thứ Tư"]
[null,"Thứ Năm"]
[null,"Thứ Sáu"]
[null,"Thứ Bảy"]
[null,"Chủ Nhật"]
[null,"Tổng số giờ hàng tuần",{"$f":"SUBTOTAL(109,Tháng_Mười_Hai[Tuần 1])","v":0},{"$f":"SUBTOTAL(109,Tháng_Mười_Hai[Giờ làm thêm])","v":0},{"$f":"SUBTOTAL(109,Tháng_Mười_Hai[Tuần 2])","v":0},{"$f":"SUBTOTAL(109,Tháng_Mười_Hai[[Giờ làm thêm ]])","v":0},{"$f":"SUBTOTAL(109,Tháng_Mười_Hai[Tuần 3])","v":0},{"$f":"SUBTOTAL(109,Tháng_Mười_Hai[[Giờ làm thêm  ]])","v":0},{"$f":"SUBTOTAL(109,Tháng_Mười_Hai[Tuần 4])","v":0},{"$f":"SUBTOTAL(109,Tháng_Mười_Hai[[Giờ làm thêm   ]])","v":0},{"$f":"SUBTOTAL(109,Tháng_Mười_Hai[Tuần 5])","v":0},{"$f":"SUBTOTAL(109,Tháng_Mười_Hai[[Giờ làm thêm    ]])","v":0}]
[null,"Tổng Thg12: Số giờ làm việc thông thường",{"$f":"SUM(Tháng_Mười_Hai[[#Totals],[Tuần 1]],Tháng_Mười_Hai[[#Totals],[Tuần 2]],Tháng_Mười_Hai[[#Totals],[Tuần 3]],Tháng_Mười_Hai[[#Totals],[Tuần 4]],Tháng_Mười_Hai[[#Totals],[Tuần 5]])","v":0},"Tổng Thg12: Giờ làm thêm",null,{"$f":"SUM(Tháng_Mười_Hai[[#Totals],[Giờ làm thêm]],Tháng_Mười_Hai[[#Totals],[Giờ làm thêm ]],Tháng_Mười_Hai[[#Totals],[Giờ làm thêm  ]],Tháng_Mười_Hai[[#Totals],[Giờ làm thêm   ]],Tháng_Mười_Hai[[#Totals],[Giờ làm thêm    ]])","v":0}]